Workbook

Sheet MỤC TIÊU
B1: =TODAY() -> 2017-05-09 | C1: MỤC TIÊU | J1: Tập thể dục | K1: Chế độ ăn uống
B2: NGÀY BẮT ĐẦU | C2: NHẬT KÝ CHẾ ĐỘ ĂN UỐNG & TẬP THỂ DỤC
B3: =StartDate+121 -> 2017-09-07 | C3: PHÂN TÍCH CHẾ ĐỘ ĂN UỐNG
B5: NGÀY KẾT THÚC
B6: 100.00
B7: CÂN NẶNG BẮT ĐẦU
B8: 80.00 | C8: PHÂN TÍCH TẬP THỂ DỤC
B10: CÂN NẶNG KẾT THÚC
B11: =StartWeight-EndWeight -> 20
B12: MỤC TIÊU GIẢM
B13: =EndDate-StartDate -> 121
B14: SỐ NGÀY GIẢM
B15: =WeightGoal/B13 -> 0.17
B16: GIẢM MỖI NGÀY

Sheet CHẾ ĐỘ ĂN UỐNG
B1: CHẾ ĐỘ ĂN UỐNG | G1: Mục tiêu | H1: Tập thể dục
B2: =Tiêu_đề_phụ -> NHẬT KÝ CHẾ ĐỘ ĂN UỐNG & TẬP THỂ DỤC
B3: NGÀY | C3: THỜI GIAN | D3: MÔ TẢ | E3: CALO | F3: CARBOHYDRAT | G3: PROTEIN | H3: CHẤT BÉO | I3: GHI CHÚ
B4: =StartDate -> 2017-05-09 | C4: 07:00:00 | D4: Cà phê | E4: 1 | F4: 0 | G4: 0 | H4: 0 | I4: Cà phê sáng
B5: =StartDate -> 2017-05-09 | C5: 08:00:00 | D5: Bánh mì tròn | E5: 10 | F5: 10 | G5: 2 | H5: 10 | I5: Bữa sáng nhẹ
B6: =StartDate -> 2017-05-09 | C6: 12:00:00 | D6: Bữa trưa | E6: 283 | F6: 46 | G6: 18 | H6: 4 | I6: Sandwich Thổ Nhĩ Kỳ
B7: =StartDate -> 2017-05-09 | C7: 19:00:00 | D7: Bữa tối | E7: 500 | F7: 42 | G7: 35 | H7: 25 | I7: Tater tot casserole
B8: =StartDate+1 -> 2017-05-10 | C8: 07:00:00 | D8: Cà phê | E8: 1 | F8: 0 | G8: 0 | H8: 0 | I8: Cà phê sáng
B9: =StartDate+1 -> 2017-05-10 | C9: 08:00:00 | D9: Bánh mì nướng | E9: 10 | F9: 10 | G9: 2 | H9: 10 | I9: Bữa sáng nhẹ
B10: =StartDate+1 -> 2017-05-10 | C10: 12:00:00 | D10: Bữa trưa | E10: 189 | F10: 26 | G10: 3 | H10: 8 | I10: Sandwich
B11: =StartDate+1 -> 2017-05-10 | C11: 19:00:00 | D11: Bữa tối | E11: 477 | F11: 62 | G11: 14 | H11: 21 | I11: Bữa tối
B12: =StartDate+2 -> 2017-05-11 | C12: 07:00:00 | D12: Cà phê | E12: 1 | F12: 0 | G12: 0 | H12: 0 | I12: Cà phê sáng
B13: =StartDate+2 -> 2017-05-11 | C13: 08:00:00 | D13: Bánh mì tròn | E13: 245 | F13: 48 | G13: 10 | H13: 2 | I13: Bữa sáng nhẹ
B14: =StartDate+2 -> 2017-05-11 | C14: 12:00:00 | D14: Bữa trưa | E14: 247 | F14: 11 | G14: 43 | H14: 5 | I14: Xa lát
B15: =StartDate+2 -> 2017-05-11 | C15: 19:00:00 | D15: Bữa tối | E15: 456 | F15: 64 | G15: 32 | H15: 22 | I15: Bữa tối
B16: =StartDate+3 -> 2017-05-12 | C16: 07:00:00 | D16: Bánh mì nướng | E16: 10 | F16: 10 | G16: 2 | H16: 10 | I16: Bữa sáng nhẹ
B17: =StartDate+3 -> 2017-05-12 | C17: 10:00:00 | D17: Cà phê | E17: 135 | F17: 12 | G17: 9 | H17: 6 | I17: Cà phê latte
B18: =StartDate+3 -> 2017-05-12 | C18: 12:15:00 | D18: Bữa trưa | E18: 184 | F18: 7 | G18: 5 | H18: 15 | I18: Xa lát
B19: =StartDate+5 -> 2017-05-14 | C19: 19:00:00 | D19: Bữa tối | E19: 477 | F19: 62 | G19: 14 | H19: 21 | I19: Bữa tối

Sheet TẬP THỂ DỤC
B1: TẬP THỂ DỤC | F1: Chế độ ăn uống | G1: Mục tiêu
B2: =Tiêu_đề_phụ -> NHẬT KÝ CHẾ ĐỘ ĂN UỐNG & TẬP THỂ DỤC
B3: NGÀY | C3: THỜI LƯỢNG (PHÚT) | D3: LưỢNG CALO ĐỐT CHÁY | E3: GHI CHÚ
B4: =StartDate+4 -> 2017-05-13 | C4: 30 | D4: 120 | E4: Tập thể dục với máy tập chạy
B5: =B4+1 -> 2017-05-14 | C5: 60 | D5: 180 | E5: Thể dục nhịp điệu nhịp chậm
B6: =B5+1 -> 2017-05-15 | C6: 60 | D6: 350 | E6: Tập thể dục cường độ cao
B7: 2017-05-16 | C7: 30 | D7: 150 | E7: Tập thể dục với máy tập chạy
B8: 2017-05-17 | C8: 25 | D8: 125 | E8: Chạy
B9: 2017-05-18 | C9: 20 | D9: 285 | E9: Tập thể dục với máy tập chạy
B10: 2017-05-19 | C10: 40 | D10: 205 | E10: Chạy
B11: 2017-05-20 | C11: 30 | D11: 335 | E11: Chạy
B12: 2017-05-21 | C12: 40 | D12: 175 | E12: Chạy
B13: 2017-05-22 | C13: 45 | D13: 325 | E13: Tập thể dục với máy tập chạy
B14: 2017-05-23 | C14: 40 | D14: 270 | E14: Chạy
B15: 2017-05-24 | C15: 20 | D15: 295 | E15: Tập thể dục với máy tập chạy
B16: 2017-05-25 | C16: 45 | D16: 350 | E16: Chạy
B17: 2017-05-26 | C17: 35 | D17: 320 | E17: Chạy
B18: 2017-05-27 | C18: 40 | D18: 290 | E18: Chạy
B19: =B18+1 -> 2017-05-28 | C19: 25 | D19: 265 | E19: Tập thể dục với máy tập chạy
B20: 2017-05-29 | C20: 20 | D20: 195 | E20: Chạy

Sheet Tính toán Biểu đồ (hidden)
B2: DỮ LIỆU BIỂU ĐỒ PHÂN TÍCH CHẾ ĐỘ ĂN UỐNG
B4: Hàng bắt đầu | C4: =ROW(Chế_độ_ăn_uống[[#Headers],[NGÀY]])+1 -> 4 | D4: NGÀY | E4: NGÀY | F4: CHẤT BÉO | G4: PROTEIN | H4: CARBOHYDRAT | I4: CALO | J4: Số
B5: Mục nhập chế độ ăn uống gần nhất | C5: =MATCH(9.99E+307,Chế_độ_ăn_uống[NGÀY])+DietRowStart-1 -> 19 | D5: =IFERROR(IF(INDEX(Chế_độ_ăn_uống[],DietLastEnd-DietRowStart-J5,1)<>"",INDEX(Chế_độ_ăn_uống[],DietLastEnd-DietRowStart-J5,1),""),"") -> 2017-05-09 | E5: =UPPER(TEXT(D5,"DDD")) -> T3 | F5: =IFERROR((IF(INDEX(Chế_độ_ăn_uống[],DietLastEnd-DietRowStart-J5,1)<>"",INDEX(Chế_độ_ăn_uống[],DietLastEnd-DietRowStart-J5,7),NA())),NA()) -> 3.5 | G5: =IFERROR((IF(INDEX(Chế_độ_ăn_uống[],DietLastEnd-DietRowStart-J5,1)<>"",INDEX(Chế_độ_ăn_uống[],DietLastEnd-DietRowStart-J5,6),NA())),NA()) -> 18 | H5: =IFERROR((IF(INDEX(Chế_độ_ăn_uống[],DietLastEnd-DietRowStart-J5,1)<>"",INDEX(Chế_độ_ăn_uống[],DietLastEnd-DietRowStart-J5,5),NA())),NA()) -> 46 | I5: =IFERROR((IF(INDEX(Chế_độ_ăn_uống[],DietLastEnd-DietRowStart-J5,1)<>"",INDEX(Chế_độ_ăn_uống[],DietLastEnd-DietRowStart-J5,4),NA())),NA()) -> 283 | J5: 12
D6: =IFERROR(IF(INDEX(Chế_độ_ăn_uống[],DietLastEnd-DietRowStart-J6,1)<>"",INDEX(Chế_độ_ăn_uống[],DietLastEnd-DietRowStart-J6,1),""),"") -> 2017-05-09 | E6: T3 | F6: =IFERROR((IF(INDEX(Chế_độ_ăn_uống[],DietLastEnd-DietRowStart-J6,1)<>"",INDEX(Chế_độ_ăn_uống[],DietLastEnd-DietRowStart-J6,7),NA())),NA()) -> 25 | G6: =IFERROR((IF(INDEX(Chế_độ_ăn_uống[],DietLastEnd-DietRowStart-J6,1)<>"",INDEX(Chế_độ_ăn_uống[],DietLastEnd-DietRowStart-J6,6),NA())),NA()) -> 35 | H6: =IFERROR((IF(INDEX(Chế_độ_ăn_uống[],DietLastEnd-DietRowStart-J6,1)<>"",INDEX(Chế_độ_ăn_uống[],DietLastEnd-DietRowStart-J6,5),NA())),NA()) -> 42 | I6: =IFERROR((IF(INDEX(Chế_độ_ăn_uống[],DietLastEnd-DietRowStart-J6,1)<>"",INDEX(Chế_độ_ăn_uống[],DietLastEnd-DietRowStart-J6,4),NA())),NA()) -> 500 | J6: 11
D7: =IFERROR(IF(INDEX(Chế_độ_ăn_uống[],DietLastEnd-DietRowStart-J7,1)<>"",INDEX(Chế_độ_ăn_uống[],DietLastEnd-DietRowStart-J7,1),""),"") -> 2017-05-10 | E7: T4 | F7: =IFERROR((IF(INDEX(Chế_độ_ăn_uống[],DietLastEnd-DietRowStart-J7,1)<>"",INDEX(Chế_độ_ăn_uống[],DietLastEnd-DietRowStart-J7,7),NA())),NA()) -> 0 | G7: =IFERROR((IF(INDEX(Chế_độ_ăn_uống[],DietLastEnd-DietRowStart-J7,1)<>"",INDEX(Chế_độ_ăn_uống[],DietLastEnd-DietRowStart-J7,6),NA())),NA()) -> 0 | H7: =IFERROR((IF(INDEX(Chế_độ_ăn_uống[],DietLastEnd-DietRowStart-J7,1)<>"",INDEX(Chế_độ_ăn_uống[],DietLastEnd-DietRowStart-J7,5),NA())),NA()) -> 0 | I7: =IFERROR((IF(INDEX(Chế_độ_ăn_uống[],DietLastEnd-DietRowStart-J7,1)<>"",INDEX(Chế_độ_ăn_uống[],DietLastEnd-DietRowStart-J7,4),NA())),NA()) -> 1 | J7: 10
D8: =IFERROR(IF(INDEX(Chế_độ_ăn_uống[],DietLastEnd-DietRowStart-J8,1)<>"",INDEX(Chế_độ_ăn_uống[],DietLastEnd-DietRowStart-J8,1),""),"") -> 2017-05-10 | E8: T4 | F8: =IFERROR((IF(INDEX(Chế_độ_ăn_uống[],DietLastEnd-DietRowStart-J8,1)<>"",INDEX(Chế_độ_ăn_uống[],DietLastEnd-DietRowStart-J8,7),NA())),NA()) -> 10 | G8: =IFERROR((IF(INDEX(Chế_độ_ăn_uống[],DietLastEnd-DietRowStart-J8,1)<>"",INDEX(Chế_độ_ăn_uống[],DietLastEnd-DietRowStart-J8,6),NA())),NA()) -> 2 | H8: =IFERROR((IF(INDEX(Chế_độ_ăn_uống[],DietLastEnd-DietRowStart-J8,1)<>"",INDEX(Chế_độ_ăn_uống[],DietLastEnd-DietRowStart-J8,5),NA())),NA()) -> 10 | I8: =IFERROR((IF(INDEX(Chế_độ_ăn_uống[],DietLastEnd-DietRowStart-J8,1)<>"",INDEX(Chế_độ_ăn_uống[],DietLastEnd-DietRowStart-J8,4),NA())),NA()) -> 10 | J8: 9
D9: =IFERROR(IF(INDEX(Chế_độ_ăn_uống[],DietLastEnd-DietRowStart-J9,1)<>"",INDEX(Chế_độ_ăn_uống[],DietLastEnd-DietRowStart-J9,1),""),"") -> 2017-05-10 | E9: T4 | F9: =IFERROR((IF(INDEX(Chế_độ_ăn_uống[],DietLastEnd-DietRowStart-J9,1)<>"",INDEX(Chế_độ_ăn_uống[],DietLastEnd-DietRowStart-J9,7),NA())),NA()) -> 8 | G9: =IFERROR((IF(INDEX(Chế_độ_ăn_uống[],DietLastEnd-DietRowStart-J9,1)<>"",INDEX(Chế_độ_ăn_uống[],DietLastEnd-DietRowStart-J9,6),NA())),NA()) -> 3 | H9: =IFERROR((IF(INDEX(Chế_độ_ăn_uống[],DietLastEnd-DietRowStart-J9,1)<>"",INDEX(Chế_độ_ăn_uống[],DietLastEnd-DietRowStart-J9,5),NA())),NA()) -> 26 | I9: =IFERROR((IF(INDEX(Chế_độ_ăn_uống[],DietLastEnd-DietRowStart-J9,1)<>"",INDEX(Chế_độ_ăn_uống[],DietLastEnd-DietRowStart-J9,4),NA())),NA()) -> 189 | J9: 8
D10: =IFERROR(IF(INDEX(Chế_độ_ăn_uống[],DietLastEnd-DietRowStart-J10,1)<>"",INDEX(Chế_độ_ăn_uống[],DietLastEnd-DietRowStart-J10,1),""),"") -> 2017-05-10 | E10: T4 | F10: =IFERROR((IF(INDEX(Chế_độ_ăn_uống[],DietLastEnd-DietRowStart-J10,1)<>"",INDEX(Chế_độ_ăn_uống[],DietLastEnd-DietRowStart-J10,7),NA())),NA()) -> 21 | G10: =IFERROR((IF(INDEX(Chế_độ_ăn_uống[],DietLastEnd-DietRowStart-J10,1)<>"",INDEX(Chế_độ_ăn_uống[],DietLastEnd-DietRowStart-J10,6),NA())),NA()) -> 13.5 | H10: =IFERROR((IF(INDEX(Chế_độ_ăn_uống[],DietLastEnd-DietRowStart-J10,1)<>"",INDEX(Chế_độ_ăn_uống[],DietLastEnd-DietRowStart-J10,5),NA())),NA()) -> 62 | I10: =IFERROR((IF(INDEX(Chế_độ_ăn_uống[],DietLastEnd-DietRowStart-J10,1)<>"",INDEX(Chế_độ_ăn_uống[],DietLastEnd-DietRowStart-J10,4),NA())),NA()) -> 477 | J10: 7
D11: =IFERROR(IF(INDEX(Chế_độ_ăn_uống[],DietLastEnd-DietRowStart-J11,1)<>"",INDEX(Chế_độ_ăn_uống[],DietLastEnd-DietRowStart-J11,1),""),"") -> 2017-05-11 | E11: T5 | F11: =IFERROR((IF(INDEX(Chế_độ_ăn_uống[],DietLastEnd-DietRowStart-J11,1)<>"",INDEX(Chế_độ_ăn_uống[],DietLastEnd-DietRowStart-J11,7),NA())),NA()) -> 0 | G11: =IFERROR((IF(INDEX(Chế_độ_ăn_uống[],DietLastEnd-DietRowStart-J11,1)<>"",INDEX(Chế_độ_ăn_uống[],DietLastEnd-DietRowStart-J11,6),NA())),NA()) -> 0 | H11: =IFERROR((IF(INDEX(Chế_độ_ăn_uống[],DietLastEnd-DietRowStart-J11,1)<>"",INDEX(Chế_độ_ăn_uống[],DietLastEnd-DietRowStart-J11,5),NA())),NA()) -> 0 | I11: =IFERROR((IF(INDEX(Chế_độ_ăn_uống[],DietLastEnd-DietRowStart-J11,1)<>"",INDEX(Chế_độ_ăn_uống[],DietLastEnd-DietRowStart-J11,4),NA())),NA()) -> 1 | J11: 6
D12: =IFERROR(IF(INDEX(Chế_độ_ăn_uống[],DietLastEnd-DietRowStart-J12,1)<>"",INDEX(Chế_độ_ăn_uống[],DietLastEnd-DietRowStart-J12,1),""),"") -> 2017-05-11 | E12: T5 | F12: =IFERROR((IF(INDEX(Chế_độ_ăn_uống[],DietLastEnd-DietRowStart-J12,1)<>"",INDEX(Chế_độ_ăn_uống[],DietLastEnd-DietRowStart-J12,7),NA())),NA()) -> 1.5 | G12: =IFERROR((IF(INDEX(Chế_độ_ăn_uống[],DietLastEnd-DietRowStart-J12,1)<>"",INDEX(Chế_độ_ăn_uống[],DietLastEnd-DietRowStart-J12,6),NA())),NA()) -> 10 | H12: =IFERROR((IF(INDEX(Chế_độ_ăn_uống[],DietLastEnd-DietRowStart-J12,1)<>"",INDEX(Chế_độ_ăn_uống[],DietLastEnd-DietRowStart-J12,5),NA())),NA()) -> 48 | I12: =IFERROR((IF(INDEX(Chế_độ_ăn_uống[],DietLastEnd-DietRowStart-J12,1)<>"",INDEX(Chế_độ_ăn_uống[],DietLastEnd-DietRowStart-J12,4),NA())),NA()) -> 245 | J12: 5
D13: =IFERROR(IF(INDEX(Chế_độ_ăn_uống[],DietLastEnd-DietRowStart-J13,1)<>"",INDEX(Chế_độ_ăn_uống[],DietLastEnd-DietRowStart-J13,1),""),"") -> 2017-05-11 | E13: T5 | F13: =IFERROR((IF(INDEX(Chế_độ_ăn_uống[],DietLastEnd-DietRowStart-J13,1)<>"",INDEX(Chế_độ_ăn_uống[],DietLastEnd-DietRowStart-J13,7),NA())),NA()) -> 5 | G13: =IFERROR((IF(INDEX(Chế_độ_ăn_uống[],DietLastEnd-DietRowStart-J13,1)<>"",INDEX(Chế_độ_ăn_uống[],DietLastEnd-DietRowStart-J13,6),NA())),NA()) -> 43 | H13: =IFERROR((IF(INDEX(Chế_độ_ăn_uống[],DietLastEnd-DietRowStart-J13,1)<>"",INDEX(Chế_độ_ăn_uống[],DietLastEnd-DietRowStart-J13,5),NA())),NA()) -> 11 | I13: =IFERROR((IF(INDEX(Chế_độ_ăn_uống[],DietLastEnd-DietRowStart-J13,1)<>"",INDEX(Chế_độ_ăn_uống[],DietLastEnd-DietRowStart-J13,4),NA())),NA()) -> 247 | J13: 4
D14: =IFERROR(IF(INDEX(Chế_độ_ăn_uống[],DietLastEnd-DietRowStart-J14,1)<>"",INDEX(Chế_độ_ăn_uống[],DietLastEnd-DietRowStart-J14,1),""),"") -> 2017-05-11 | E14: T5 | F14: =IFERROR((IF(INDEX(Chế_độ_ăn_uống[],DietLastEnd-DietRowStart-J14,1)<>"",INDEX(Chế_độ_ăn_uống[],DietLastEnd-DietRowStart-J14,7),NA())),NA()) -> 22 | G14: =IFERROR((IF(INDEX(Chế_độ_ăn_uống[],DietLastEnd-DietRowStart-J14,1)<>"",INDEX(Chế_độ_ăn_uống[],DietLastEnd-DietRowStart-J14,6),NA())),NA()) -> 32 | H14: =IFERROR((IF(INDEX(Chế_độ_ăn_uống[],DietLastEnd-DietRowStart-J14,1)<>"",INDEX(Chế_độ_ăn_uống[],DietLastEnd-DietRowStart-J14,5),NA())),NA()) -> 64 | I14: =IFERROR((IF(INDEX(Chế_độ_ăn_uống[],DietLastEnd-DietRowStart-J14,1)<>"",INDEX(Chế_độ_ăn_uống[],DietLastEnd-DietRowStart-J14,4),NA())),NA()) -> 456 | J14: 3
D15: =IFERROR(IF(INDEX(Chế_độ_ăn_uống[],DietLastEnd-DietRowStart-J15,1)<>"",INDEX(Chế_độ_ăn_uống[],DietLastEnd-DietRowStart-J15,1),""),"") -> 2017-05-12 | E15: T6 | F15: =IFERROR((IF(INDEX(Chế_độ_ăn_uống[],DietLastEnd-DietRowStart-J15,1)<>"",INDEX(Chế_độ_ăn_uống[],DietLastEnd-DietRowStart-J15,7),NA())),NA()) -> 10 | G15: =IFERROR((IF(INDEX(Chế_độ_ăn_uống[],DietLastEnd-DietRowStart-J15,1)<>"",INDEX(Chế_độ_ăn_uống[],DietLastEnd-DietRowStart-J15,6),NA())),NA()) -> 2 | H15: =IFERROR((IF(INDEX(Chế_độ_ăn_uống[],DietLastEnd-DietRowStart-J15,1)<>"",INDEX(Chế_độ_ăn_uống[],DietLastEnd-DietRowStart-J15,5),NA())),NA()) -> 10 | I15: =IFERROR((IF(INDEX(Chế_độ_ăn_uống[],DietLastEnd-DietRowStart-J15,1)<>"",INDEX(Chế_độ_ăn_uống[],DietLastEnd-DietRowStart-J15,4),NA())),NA()) -> 10 | J15: 2
D16: =IFERROR(IF(INDEX(Chế_độ_ăn_uống[],DietLastEnd-DietRowStart-J16,1)<>"",INDEX(Chế_độ_ăn_uống[],DietLastEnd-DietRowStart-J16,1),""),"") -> 2017-05-12 | E16: T6 | F16: =IFERROR((IF(INDEX(Chế_độ_ăn_uống[],DietLastEnd-DietRowStart-J16,1)<>"",INDEX(Chế_độ_ăn_uống[],DietLastEnd-DietRowStart-J16,7),NA())),NA()) -> 5.51 | G16: =IFERROR((IF(INDEX(Chế_độ_ăn_uống[],DietLastEnd-DietRowStart-J16,1)<>"",INDEX(Chế_độ_ăn_uống[],DietLastEnd-DietRowStart-J16,6),NA())),NA()) -> 8.81 | H16: =IFERROR((IF(INDEX(Chế_độ_ăn_uống[],DietLastEnd-DietRowStart-J16,1)<>"",INDEX(Chế_độ_ăn_uống[],DietLastEnd-DietRowStart-J16,5),NA())),NA()) -> 12.36 | I16: =IFERROR((IF(INDEX(Chế_độ_ăn_uống[],DietLastEnd-DietRowStart-J16,1)<>"",INDEX(Chế_độ_ăn_uống[],DietLastEnd-DietRowStart-J16,4),NA())),NA()) -> 135 | J16: 1
D17: =IFERROR(IF(INDEX(Chế_độ_ăn_uống[],DietLastEnd-DietRowStart-J17,1)<>"",INDEX(Chế_độ_ăn_uống[],DietLastEnd-DietRowStart-J17,1),""),"") -> 2017-05-12 | E17: T6 | F17: =IFERROR((IF(INDEX(Chế_độ_ăn_uống[],DietLastEnd-DietRowStart-J17,1)<>"",INDEX(Chế_độ_ăn_uống[],DietLastEnd-DietRowStart-J17,7),NA())),NA()) -> 15 | G17: =IFERROR((IF(INDEX(Chế_độ_ăn_uống[],DietLastEnd-DietRowStart-J17,1)<>"",INDEX(Chế_độ_ăn_uống[],DietLastEnd-DietRowStart-J17,6),NA())),NA()) -> 5.43 | H17: =IFERROR((IF(INDEX(Chế_độ_ăn_uống[],DietLastEnd-DietRowStart-J17,1)<>"",INDEX(Chế_độ_ăn_uống[],DietLastEnd-DietRowStart-J17,5),NA())),NA()) -> 7 | I17: =IFERROR((IF(INDEX(Chế_độ_ăn_uống[],DietLastEnd-DietRowStart-J17,1)<>"",INDEX(Chế_độ_ăn_uống[],DietLastEnd-DietRowStart-J17,4),NA())),NA()) -> 184 | J17: 0
D18: =IFERROR(IF(INDEX(Chế_độ_ăn_uống[],DietLastEnd-DietRowStart-J18,1)<>"",INDEX(Chế_độ_ăn_uống[],DietLastEnd-DietRowStart-J18,1),""),"") -> 2017-05-14 | E18: CN | F18: =IFERROR((IF(INDEX(Chế_độ_ăn_uống[],DietLastEnd-DietRowStart-J18,1)<>"",INDEX(Chế_độ_ăn_uống[],DietLastEnd-DietRowStart-J18,7),NA())),NA()) -> 21 | G18: =IFERROR((IF(INDEX(Chế_độ_ăn_uống[],DietLastEnd-DietRowStart-J18,1)<>"",INDEX(Chế_độ_ăn_uống[],DietLastEnd-DietRowStart-J18,6),NA())),NA()) -> 13.5 | H18: =IFERROR((IF(INDEX(Chế_độ_ăn_uống[],DietLastEnd-DietRowStart-J18,1)<>"",INDEX(Chế_độ_ăn_uống[],DietLastEnd-DietRowStart-J18,5),NA())),NA()) -> 62 | I18: =IFERROR((IF(INDEX(Chế_độ_ăn_uống[],DietLastEnd-DietRowStart-J18,1)<>"",INDEX(Chế_độ_ăn_uống[],DietLastEnd-DietRowStart-J18,4),NA())),NA()) -> 477 | J18: -1
B20: DỮ LIỆU BIỂU ĐỒ PHÂN TÍCH TẬP THỂ DỤC
B22: Hàng bắt đầu | C22: =ROW(Tập_thể_dục[[#Headers],[NGÀY]])+1 -> 4 | D22: NGÀY | E22: NGÀY | F22: THỜI LƯỢNG (PHÚT) | G22: LƯỢNG CALO TIÊU THỤ | H22: Số
B23: Mục nhập tập thể dục gần nhất | C23: =MATCH(9.99E+307,Tập_thể_dục[NGÀY])+ExerciseRowStart-1 -> 20 | D23: =IFERROR(IF(INDEX(Tập_thể_dục[],ExerciseLastEnd-ExerciseRowStart-H23,1)<>"",INDEX(Tập_thể_dục[],ExerciseLastEnd-ExerciseRowStart-H23,1)),"") -> 2017-05-29 | E23: =UPPER(TEXT(D23,"DDD")) -> T2 | F23: =IFERROR((IF(INDEX(Tập_thể_dục[],ExerciseLastEnd-ExerciseRowStart-H23,1)<>"",INDEX(Tập_thể_dục[],ExerciseLastEnd-ExerciseRowStart-H23,2),0)),0) -> 20 | G23: =IFERROR((IF(INDEX(Tập_thể_dục[],ExerciseLastEnd-ExerciseRowStart-H23,2)<>"",INDEX(Tập_thể_dục[],ExerciseLastEnd-ExerciseRowStart-H23,3),0)),0) -> 195 | H23: -1
D24: =IFERROR(IF(INDEX(Tập_thể_dục[],ExerciseLastEnd-ExerciseRowStart-H24,1)<>"",INDEX(Tập_thể_dục[],ExerciseLastEnd-ExerciseRowStart-H24,1)),"") -> 2017-05-28 | E24: CN | F24: =IFERROR((IF(INDEX(Tập_thể_dục[],ExerciseLastEnd-ExerciseRowStart-H24,1)<>"",INDEX(Tập_thể_dục[],ExerciseLastEnd-ExerciseRowStart-H24,2),0)),0) -> 25 | G24: =IFERROR((IF(INDEX(Tập_thể_dục[],ExerciseLastEnd-ExerciseRowStart-H24,2)<>"",INDEX(Tập_thể_dục[],ExerciseLastEnd-ExerciseRowStart-H24,3),0)),0) -> 265 | H24: 0
D25: =IFERROR(IF(INDEX(Tập_thể_dục[],ExerciseLastEnd-ExerciseRowStart-H25,1)<>"",INDEX(Tập_thể_dục[],ExerciseLastEnd-ExerciseRowStart-H25,1)),"") -> 2017-05-27 | E25: T7 | F25: =IFERROR((IF(INDEX(Tập_thể_dục[],ExerciseLastEnd-ExerciseRowStart-H25,1)<>"",INDEX(Tập_thể_dục[],ExerciseLastEnd-ExerciseRowStart-H25,2),0)),0) -> 40 | G25: =IFERROR((IF(INDEX(Tập_thể_dục[],ExerciseLastEnd-ExerciseRowStart-H25,2)<>"",INDEX(Tập_thể_dục[],ExerciseLastEnd-ExerciseRowStart-H25,3),0)),0) -> 290 | H25: 1
D26: =IFERROR(IF(INDEX(Tập_thể_dục[],ExerciseLastEnd-ExerciseRowStart-H26,1)<>"",INDEX(Tập_thể_dục[],ExerciseLastEnd-ExerciseRowStart-H26,1)),"") -> 2017-05-26 | E26: T6 | F26: =IFERROR((IF(INDEX(Tập_thể_dục[],ExerciseLastEnd-ExerciseRowStart-H26,1)<>"",INDEX(Tập_thể_dục[],ExerciseLastEnd-ExerciseRowStart-H26,2),0)),0) -> 35 | G26: =IFERROR((IF(INDEX(Tập_thể_dục[],ExerciseLastEnd-ExerciseRowStart-H26,2)<>"",INDEX(Tập_thể_dục[],ExerciseLastEnd-ExerciseRowStart-H26,3),0)),0) -> 320 | H26: 2
D27: =IFERROR(IF(INDEX(Tập_thể_dục[],ExerciseLastEnd-ExerciseRowStart-H27,1)<>"",INDEX(Tập_thể_dục[],ExerciseLastEnd-ExerciseRowStart-H27,1)),"") -> 2017-05-25 | E27: T5 | F27: =IFERROR((IF(INDEX(Tập_thể_dục[],ExerciseLastEnd-ExerciseRowStart-H27,1)<>"",INDEX(Tập_thể_dục[],ExerciseLastEnd-ExerciseRowStart-H27,2),0)),0) -> 45 | G27: =IFERROR((IF(INDEX(Tập_thể_dục[],ExerciseLastEnd-ExerciseRowStart-H27,2)<>"",INDEX(Tập_thể_dục[],ExerciseLastEnd-ExerciseRowStart-H27,3),0)),0) -> 350 | H27: 3
D28: =IFERROR(IF(INDEX(Tập_thể_dục[],ExerciseLastEnd-ExerciseRowStart-H28,1)<>"",INDEX(Tập_thể_dục[],ExerciseLastEnd-ExerciseRowStart-H28,1)),"") -> 2017-05-24 | E28: T4 | F28: =IFERROR((IF(INDEX(Tập_thể_dục[],ExerciseLastEnd-ExerciseRowStart-H28,1)<>"",INDEX(Tập_thể_dục[],ExerciseLastEnd-ExerciseRowStart-H28,2),0)),0) -> 20 | G28: =IFERROR((IF(INDEX(Tập_thể_dục[],ExerciseLastEnd-ExerciseRowStart-H28,2)<>"",INDEX(Tập_thể_dục[],ExerciseLastEnd-ExerciseRowStart-H28,3),0)),0) -> 295 | H28: 4
D29: =IFERROR(IF(INDEX(Tập_thể_dục[],ExerciseLastEnd-ExerciseRowStart-H29,1)<>"",INDEX(Tập_thể_dục[],ExerciseLastEnd-ExerciseRowStart-H29,1)),"") -> 2017-05-23 | E29: T3 | F29: =IFERROR((IF(INDEX(Tập_thể_dục[],ExerciseLastEnd-ExerciseRowStart-H29,1)<>"",INDEX(Tập_thể_dục[],ExerciseLastEnd-ExerciseRowStart-H29,2),0)),0) -> 40 | G29: =IFERROR((IF(INDEX(Tập_thể_dục[],ExerciseLastEnd-ExerciseRowStart-H29,2)<>"",INDEX(Tập_thể_dục[],ExerciseLastEnd-ExerciseRowStart-H29,3),0)),0) -> 270 | H29: 5
D30: =IFERROR(IF(INDEX(Tập_thể_dục[],ExerciseLastEnd-ExerciseRowStart-H30,1)<>"",INDEX(Tập_thể_dục[],ExerciseLastEnd-ExerciseRowStart-H30,1)),"") -> 2017-05-22 | E30: T2 | F30: =IFERROR((IF(INDEX(Tập_thể_dục[],ExerciseLastEnd-ExerciseRowStart-H30,1)<>"",INDEX(Tập_thể_dục[],ExerciseLastEnd-ExerciseRowStart-H30,2),0)),0) -> 45 | G30: =IFERROR((IF(INDEX(Tập_thể_dục[],ExerciseLastEnd-ExerciseRowStart-H30,2)<>"",INDEX(Tập_thể_dục[],ExerciseLastEnd-ExerciseRowStart-H30,3),0)),0) -> 325 | H30: 6
D31: =IFERROR(IF(INDEX(Tập_thể_dục[],ExerciseLastEnd-ExerciseRowStart-H31,1)<>"",INDEX(Tập_thể_dục[],ExerciseLastEnd-ExerciseRowStart-H31,1)),"") -> 2017-05-21 | E31: CN | F31: =IFERROR((IF(INDEX(Tập_thể_dục[],ExerciseLastEnd-ExerciseRowStart-H31,1)<>"",INDEX(Tập_thể_dục[],ExerciseLastEnd-ExerciseRowStart-H31,2),0)),0) -> 40 | G31: =IFERROR((IF(INDEX(Tập_thể_dục[],ExerciseLastEnd-ExerciseRowStart-H31,2)<>"",INDEX(Tập_thể_dục[],ExerciseLastEnd-ExerciseRowStart-H31,3),0)),0) -> 175 | H31: 7
D32: =IFERROR(IF(INDEX(Tập_thể_dục[],ExerciseLastEnd-ExerciseRowStart-H32,1)<>"",INDEX(Tập_thể_dục[],ExerciseLastEnd-ExerciseRowStart-H32,1)),"") -> 2017-05-20 | E32: T7 | F32: =IFERROR((IF(INDEX(Tập_thể_dục[],ExerciseLastEnd-ExerciseRowStart-H32,1)<>"",INDEX(Tập_thể_dục[],ExerciseLastEnd-ExerciseRowStart-H32,2),0)),0) -> 30 | G32: =IFERROR((IF(INDEX(Tập_thể_dục[],ExerciseLastEnd-ExerciseRowStart-H32,2)<>"",INDEX(Tập_thể_dục[],ExerciseLastEnd-ExerciseRowStart-H32,3),0)),0) -> 335 | H32: 8
D33: =IFERROR(IF(INDEX(Tập_thể_dục[],ExerciseLastEnd-ExerciseRowStart-H33,1)<>"",INDEX(Tập_thể_dục[],ExerciseLastEnd-ExerciseRowStart-H33,1)),"") -> 2017-05-19 | E33: T6 | F33: =IFERROR((IF(INDEX(Tập_thể_dục[],ExerciseLastEnd-ExerciseRowStart-H33,1)<>"",INDEX(Tập_thể_dục[],ExerciseLastEnd-ExerciseRowStart-H33,2),0)),0) -> 40 | G33: =IFERROR((IF(INDEX(Tập_thể_dục[],ExerciseLastEnd-ExerciseRowStart-H33,2)<>"",INDEX(Tập_thể_dục[],ExerciseLastEnd-ExerciseRowStart-H33,3),0)),0) -> 205 | H33: 9
D34: =IFERROR(IF(INDEX(Tập_thể_dục[],ExerciseLastEnd-ExerciseRowStart-H34,1)<>"",INDEX(Tập_thể_dục[],ExerciseLastEnd-ExerciseRowStart-H34,1)),"") -> 2017-05-18 | E34: T5 | F34: =IFERROR((IF(INDEX(Tập_thể_dục[],ExerciseLastEnd-ExerciseRowStart-H34,1)<>"",INDEX(Tập_thể_dục[],ExerciseLastEnd-ExerciseRowStart-H34,2),0)),0) -> 20 | G34: =IFERROR((IF(INDEX(Tập_thể_dục[],ExerciseLastEnd-ExerciseRowStart-H34,2)<>"",INDEX(Tập_thể_dục[],ExerciseLastEnd-ExerciseRowStart-H34,3),0)),0) -> 285 | H34: 10
D35: =IFERROR(IF(INDEX(Tập_thể_dục[],ExerciseLastEnd-ExerciseRowStart-H35,1)<>"",INDEX(Tập_thể_dục[],ExerciseLastEnd-ExerciseRowStart-H35,1)),"") -> 2017-05-17 | E35: T4 | F35: =IFERROR((IF(INDEX(Tập_thể_dục[],ExerciseLastEnd-ExerciseRowStart-H35,1)<>"",INDEX(Tập_thể_dục[],ExerciseLastEnd-ExerciseRowStart-H35,2),0)),0) -> 25 | G35: =IFERROR((IF(INDEX(Tập_thể_dục[],ExerciseLastEnd-ExerciseRowStart-H35,2)<>"",INDEX(Tập_thể_dục[],ExerciseLastEnd-ExerciseRowStart-H35,3),0)),0) -> 125 | H35: 11
D36: =IFERROR(IF(INDEX(Tập_thể_dục[],ExerciseLastEnd-ExerciseRowStart-H36,1)<>"",INDEX(Tập_thể_dục[],ExerciseLastEnd-ExerciseRowStart-H36,1)),"") -> 2017-05-16 | E36: T3 | F36: =IFERROR((IF(INDEX(Tập_thể_dục[],ExerciseLastEnd-ExerciseRowStart-H36,1)<>"",INDEX(Tập_thể_dục[],ExerciseLastEnd-ExerciseRowStart-H36,2),0)),0) -> 30 | G36: =IFERROR((IF(INDEX(Tập_thể_dục[],ExerciseLastEnd-ExerciseRowStart-H36,2)<>"",INDEX(Tập_thể_dục[],ExerciseLastEnd-ExerciseRowStart-H36,3),0)),0) -> 150 | H36: 12
